[Event "*** Titled Tuesday Blitz"]
[Site "Chess.com"]
[Date "2020.05.12"]
[Round "10"]
[White "nabukatnezarr"]
[Black "kasparicy"]
[Result "0-1"]
[WhiteElo "2488"]
[BlackElo "2332"]
[TimeControl "180+1"]
[EndTime "11:52:52 PDT"]
[Termination "kasparicy won by resignation"]

1. e4 {[%clk 0:03:00.9]} 1... c5 {[%clk 0:02:59.9]} 2. Nf3 {[%clk 0:03:01.1]}
2... d6 {[%clk 0:03:00.5]} 3. d4 {[%clk 0:03:01.5]} 3... cxd4 {[%clk 0:03:01.4]}
4. Nxd4 {[%clk 0:03:02.1]} 4... Nf6 {[%clk 0:03:02.3]} 5. Nc3 {[%clk 0:03:02.7]}
5... a6 {[%clk 0:03:03.1]} 6. Bg5 {[%clk 0:03:03]} 6... Nbd7 {[%clk 0:03:02.5]}
7. Qe2 {[%clk 0:03:02.9]} 7... e6 {[%clk 0:03:03]} 8. O-O-O {[%clk 0:03:02.2]}
8... Qc7 {[%clk 0:03:03.5]} 9. f4 {[%clk 0:03:00.3]} 9... Be7 {[%clk 0:03:04]}
10. g4 {[%clk 0:02:59.7]} 10... b5 {[%clk 0:03:04.2]} 11. Bxf6 {[%clk
0:02:54.6]} 11... Bxf6 {[%clk 0:03:03.6]} 12. g5 {[%clk 0:02:49.3]} 12... Bxd4
{[%clk 0:03:02.7]} 13. Rxd4 {[%clk 0:02:50.2]} 13... O-O {[%clk 0:03:00.8]} 14.
Bg2 {[%clk 0:02:48.1]} 14... Bb7 {[%clk 0:02:56.4]} 15. Rhd1 {[%clk 0:02:48.3]}
15... Nc5 {[%clk 0:02:48.8]} 16. a3 {[%clk 0:02:09.1]} 16... Rfd8 {[%clk
0:02:17.3]} 17. Qd2 {[%clk 0:02:09.1]} 17... Qa5 {[%clk 0:01:23.2]} 18. Rxd6
{[%clk 0:01:59]} 18... Rdc8 {[%clk 0:01:22.1]} 19. Kb1 {[%clk 0:01:49.6]} 19...
g6 {[%clk 0:01:12.3]} 20. b4 {[%clk 0:01:44.4]} 20... Qxa3 {[%clk 0:01:04.4]}
21. bxc5 {[%clk 0:01:44.4]} 21... Qxc5 {[%clk 0:01:02.7]} 22. Na2 {[%clk
0:01:36.2]} 22... Qa3 {[%clk 0:00:56]} 23. Rd3 {[%clk 0:01:33.1]} 23... Qc5
{[%clk 0:00:50.6]} 24. Rd7 {[%clk 0:01:15.8]} 24... Bc6 {[%clk 0:00:45.7]} 25.
Rd6 {[%clk 0:01:13.4]} 25... a5 {[%clk 0:00:44]} 26. e5 {[%clk 0:01:13.1]} 26...
Bxg2 {[%clk 0:00:42.2]} 27. Qxg2 {[%clk 0:01:14]} 27... b4 {[%clk 0:00:42.4]}
28. Qd2 {[%clk 0:00:57.8]} 28... a4 {[%clk 0:00:41.1]} 29. Qd4 {[%clk
0:00:57.9]} 29... Qxc2+ {[%clk 0:00:40.3]} 30. Ka1 {[%clk 0:00:58]} 30... b3
{[%clk 0:00:36.8]} 31. Qb2 {[%clk 0:00:57.9]} 31... Qxb2+ {[%clk 0:00:34]} 32.
Kxb2 {[%clk 0:00:58.8]} 32... Rc2+ {[%clk 0:00:34.6]} 33. Kb1 {[%clk 0:00:58.5]}
33... Rxa2 {[%clk 0:00:34]} 34. h4 {[%clk 0:00:57.9]} 34... a3 {[%clk
0:00:32.3]} 35. h5 {[%clk 0:00:56]} 35... gxh5 {[%clk 0:00:33.2]} 36. f5 {[%clk
0:00:56.4]} 36... exf5 {[%clk 0:00:29.4]} 37. e6 {[%clk 0:00:56.4]} 37... fxe6
{[%clk 0:00:28.6]} 38. Rxe6 {[%clk 0:00:57.3]} 38... Rc2 {[%clk 0:00:25.2]} 0-1

[Event "*** Titled Tuesday Blitz"]
[Site "Chess.com"]
[Date "2020.05.12"]
[Round "10"]
[White "Snegokhod"]
[Black "Irishchessman16"]
[Result "1-0"]
[WhiteElo "2555"]
[BlackElo "2421"]
[TimeControl "180+1"]
[EndTime "11:52:53 PDT"]
[Termination "Snegokhod won on time"]

1. e4 {[%clk 0:03:00.9]} 1... c5 {[%clk 0:02:48.1]} 2. Nf3 {[%clk 0:02:59.4]}
2... Nc6 {[%clk 0:02:47]} 3. Bb5 {[%clk 0:02:58.5]} 3... e6 {[%clk 0:02:45.1]}
4. O-O {[%clk 0:02:57.9]} 4... Nge7 {[%clk 0:02:31]} 5. c3 {[%clk 0:02:57.1]}
5... a6 {[%clk 0:02:30.1]} 6. Ba4 {[%clk 0:02:54.9]} 6... b5 {[%clk 0:02:30.2]}
7. Bc2 {[%clk 0:02:54]} 7... c4 {[%clk 0:02:30.7]} 8. b3 {[%clk 0:02:53.7]} 8...
Bb7 {[%clk 0:02:29]} 9. bxc4 {[%clk 0:02:49.6]} 9... bxc4 {[%clk 0:02:29.9]} 10.
Na3 {[%clk 0:02:49]} 10... d5 {[%clk 0:02:29.3]} 11. exd5 {[%clk 0:02:46.3]}
11... exd5 {[%clk 0:02:29.2]} 12. Rb1 {[%clk 0:02:45.8]} 12... Qc7 {[%clk
0:02:23.3]} 13. d3 {[%clk 0:02:41.6]} 13... cxd3 {[%clk 0:02:06.9]} 14. Qxd3
{[%clk 0:02:38.2]} 14... Ng6 {[%clk 0:02:06.2]} 15. Re1+ {[%clk 0:02:37.2]}
15... Be7 {[%clk 0:02:06]} 16. Qxd5 {[%clk 0:02:28.2]} 16... O-O {[%clk
0:02:03.2]} 17. Qh5 {[%clk 0:02:25.7]} 17... Na5 {[%clk 0:01:54.5]} 18. Ng5
{[%clk 0:02:17]} 18... Bxg5 {[%clk 0:01:51.1]} 19. Qxg5 {[%clk 0:02:11]} 19...
Qxc3 {[%clk 0:01:41.1]} 20. Bb2 {[%clk 0:02:07.5]} 20... Qc6 {[%clk 0:01:24.5]}
21. Be4 {[%clk 0:02:00.2]} 21... Qc7 {[%clk 0:01:24]} 22. h4 {[%clk 0:01:52.3]}
22... Bxe4 {[%clk 0:01:20.2]} 23. Rxe4 {[%clk 0:01:51]} 23... f6 {[%clk
0:00:53.6]} 24. Qd5+ {[%clk 0:01:48.2]} 24... Kh8 {[%clk 0:00:53]} 25. h5 {[%clk
0:01:48.1]} 25... Rad8 {[%clk 0:00:46.3]} 26. Qf5 {[%clk 0:01:40.2]} 26... Ne7
{[%clk 0:00:33.1]} 27. Qe6 {[%clk 0:01:38]} 27... Nd5 {[%clk 0:00:18.8]} 28. h6
{[%clk 0:01:35.3]} 28... gxh6 {[%clk 0:00:12.7]} 29. Rd1 {[%clk 0:01:27.7]}
29... Qd7 {[%clk 0:00:09.6]} 30. Qxa6 {[%clk 0:01:09.1]} 30... Nc6 {[%clk
0:00:06.6]} 31. Nc4 {[%clk 0:00:53]} 1-0

[Event "*** Titled Tuesday Blitz"]
[Site "Chess.com"]
[Date "2020.05.12"]
[Round "10"]
[White "Enriquack"]
[Black "Rodchenkov_Vitalij"]
[Result "0-1"]
[WhiteElo "2270"]
[BlackElo "2428"]
[TimeControl "180+1"]
[EndTime "11:52:56 PDT"]
[Termination "Rodchenkov_Vitalij won by resignation"]

1. e4 {[%clk 0:03:00.9]} 1... e6 {[%clk 0:03:00]} 2. d4 {[%clk 0:03:00.5]} 2...
d5 {[%clk 0:03:00.1]} 3. Nc3 {[%clk 0:03:00.8]} 3... Nf6 {[%clk 0:02:58.4]} 4.
Bg5 {[%clk 0:03:00.5]} 4... dxe4 {[%clk 0:02:54.8]} 5. Nxe4 {[%clk 0:03:00.1]}
5... Be7 {[%clk 0:02:55.3]} 6. Bxf6 {[%clk 0:03:00.3]} 6... gxf6 {[%clk
0:02:55.1]} 7. Qd2 {[%clk 0:03:00.1]} 7... b6 {[%clk 0:02:50.8]} 8. g3 {[%clk
0:02:59.7]} 8... Bb7 {[%clk 0:02:43.6]} 9. Bg2 {[%clk 0:02:59.5]} 9... Nc6
{[%clk 0:02:41.7]} 10. O-O-O {[%clk 0:02:56.9]} 10... Qd7 {[%clk 0:02:38.7]} 11.
Ne2 {[%clk 0:02:55.7]} 11... O-O-O {[%clk 0:02:36.1]} 12. Kb1 {[%clk 0:02:35.6]}
12... f5 {[%clk 0:02:31.8]} 13. Ng5 {[%clk 0:02:30.4]} 13... Bf6 {[%clk
0:02:25.8]} 14. d5 {[%clk 0:02:21.2]} 14... Ne5 {[%clk 0:02:17.9]} 15. Qf4
{[%clk 0:02:06.3]} 15... Bxd5 {[%clk 0:02:01.3]} 16. Bxd5 {[%clk 0:02:02.8]}
16... exd5 {[%clk 0:02:00.6]} 17. Nd4 {[%clk 0:01:49.6]} 17... Nc4 {[%clk
0:01:56.6]} 18. h4 {[%clk 0:01:37.1]} 18... h6 {[%clk 0:01:53.9]} 19. Ngf3
{[%clk 0:01:35.5]} 19... Qd6 {[%clk 0:01:38.8]} 20. Qxf5+ {[%clk 0:01:33.5]}
20... Kb7 {[%clk 0:01:38.9]} 21. c3 {[%clk 0:01:26.2]} 21... c5 {[%clk
0:01:31.7]} 22. Nc2 {[%clk 0:01:23.9]} 22... Rhe8 {[%clk 0:01:27]} 23. Rhe1
{[%clk 0:01:22.9]} 23... Re6 {[%clk 0:01:25.1]} 24. Qh7 {[%clk 0:01:05.2]} 24...
Rd7 {[%clk 0:01:17]} 25. Rxe6 {[%clk 0:01:01.2]} 25... Qxe6 {[%clk 0:01:14.4]}
26. Qxh6 {[%clk 0:00:53.1]} 26... Nxb2 {[%clk 0:01:11.9]} 27. Re1 {[%clk
0:00:47.3]} 27... Qf5 {[%clk 0:01:11.8]} 28. Kxb2 {[%clk 0:00:43.7]} 28... Qxf3
{[%clk 0:01:08.8]} 29. Qe3 {[%clk 0:00:38.2]} 29... Qf5 {[%clk 0:01:07.6]} 30.
Qe8 {[%clk 0:00:35.5]} 30... d4 {[%clk 0:01:03.3]} 31. cxd4 {[%clk 0:00:33.5]}
31... cxd4 {[%clk 0:01:01.5]} 32. Nb4 {[%clk 0:00:25.2]} 32... d3+ {[%clk
0:01:00.2]} 33. Kb3 {[%clk 0:00:25]} 33... d2 {[%clk 0:00:56.1]} 34. Rd1 {[%clk
0:00:24.9]} 34... Qf3+ {[%clk 0:00:52.3]} 35. Ka4 {[%clk 0:00:15.7]} 35... Qxd1+
{[%clk 0:00:50.5]} 0-1

[Event "*** Titled Tuesday Blitz"]
[Site "Chess.com"]
[Date "2020.05.12"]
[Round "10"]
[White "Gromes7"]
[Black "CuattroPrincesses"]
[Result "0-1"]
[WhiteElo "2137"]
[BlackElo "2275"]
[TimeControl "180+1"]
[EndTime "11:52:56 PDT"]
[Termination "CuattroPrincesses won on time"]

1. d4 {[%clk 0:02:53.5]} 1... Nf6 {[%clk 0:02:59.2]} 2. g3 {[%clk 0:02:53.5]}
2... g6 {[%clk 0:02:59.5]} 3. Bg2 {[%clk 0:02:53.1]} 3... d5 {[%clk 0:02:59]} 4.
Nf3 {[%clk 0:02:52.2]} 4... Bg7 {[%clk 0:02:59.5]} 5. O-O {[%clk 0:02:52.5]}
5... O-O {[%clk 0:02:59.9]} 6. c4 {[%clk 0:02:52.7]} 6... c6 {[%clk 0:02:59.5]}
7. b3 {[%clk 0:02:51.6]} 7... dxc4 {[%clk 0:02:57]} 8. bxc4 {[%clk 0:02:51.4]}
8... c5 {[%clk 0:02:57.5]} 9. d5 {[%clk 0:02:50.7]} 9... Ne4 {[%clk 0:02:56.1]}
10. Qc2 {[%clk 0:02:47.9]} 10... Bf5 {[%clk 0:02:46.8]} 11. Nh4 {[%clk
0:02:42.6]} 11... Bxa1 {[%clk 0:02:19.2]} 12. Bxe4 {[%clk 0:02:40.2]} 12... Bxe4
{[%clk 0:02:14.6]} 13. Qxe4 {[%clk 0:02:40.2]} 13... Bg7 {[%clk 0:02:14.7]} 14.
Bg5 {[%clk 0:02:31.2]} 14... Re8 {[%clk 0:02:06.9]} 15. Nd2 {[%clk 0:02:15.9]}
15... h6 {[%clk 0:02:05.9]} 16. Be3 {[%clk 0:02:15.1]} 16... Nd7 {[%clk
0:02:04.7]} 17. Ndf3 {[%clk 0:01:30.2]} 17... b6 {[%clk 0:02:01.6]} 18. Ng2
{[%clk 0:00:54.8]} 18... Nf6 {[%clk 0:01:52.1]} 19. Qc2 {[%clk 0:00:54.2]} 19...
e6 {[%clk 0:01:51.2]} 20. Rd1 {[%clk 0:00:53.4]} 20... exd5 {[%clk 0:01:49.8]}
21. cxd5 {[%clk 0:00:51.7]} 21... Qd7 {[%clk 0:01:39.1]} 22. Nf4 {[%clk
0:00:42.9]} 22... Rad8 {[%clk 0:01:38.6]} 23. d6 {[%clk 0:00:37.1]} 23... g5
{[%clk 0:01:26.5]} 24. Nd5 {[%clk 0:00:27.1]} 24... Nxd5 {[%clk 0:01:25.5]} 25.
Rxd5 {[%clk 0:00:26.1]} 25... Qe6 {[%clk 0:01:24.6]} 26. Qd2 {[%clk 0:00:19.2]}
26... Rd7 {[%clk 0:01:11.7]} 27. Bxg5 {[%clk 0:00:09.8]} 27... hxg5 {[%clk
0:01:08.1]} 28. Nxg5 {[%clk 0:00:06]} 28... Qg6 {[%clk 0:01:04.4]} 29. h4 {[%clk
0:00:04.2]} 29... Re5 {[%clk 0:00:57.1]} 30. Rxe5 {[%clk 0:00:02.9]} 30... Bxe5
{[%clk 0:00:56.2]} 0-1

[Event "*** Titled Tuesday Blitz"]
[Site "Chess.com"]
[Date "2020.05.12"]
[Round "10"]
[White "vanea_03"]
[Black "oneshot007"]
[Result "1-0"]
[WhiteElo "2634"]
[BlackElo "2420"]
[TimeControl "180+1"]
[EndTime "11:52:57 PDT"]
[Termination "vanea_03 won by resignation"]

1. d4 {[%clk 0:03:00.9]} 1... Nf6 {[%clk 0:02:56.7]} 2. c4 {[%clk 0:03:00.2]}
2... g6 {[%clk 0:02:56.9]} 3. Nf3 {[%clk 0:02:58.5]} 3... Bg7 {[%clk 0:02:53.3]}
4. e3 {[%clk 0:02:58.9]} 4... O-O {[%clk 0:02:51.1]} 5. Be2 {[%clk 0:02:59.3]}
5... d6 {[%clk 0:02:46.9]} 6. O-O {[%clk 0:02:58.6]} 6... Re8 {[%clk 0:02:41.9]}
7. Nc3 {[%clk 0:02:58.1]} 7... Nbd7 {[%clk 0:02:40.2]} 8. Qc2 {[%clk 0:02:58.3]}
8... e5 {[%clk 0:02:39.8]} 9. Rd1 {[%clk 0:02:58.7]} 9... c6 {[%clk 0:01:47.6]}
10. dxe5 {[%clk 0:02:51.1]} 10... dxe5 {[%clk 0:01:45.9]} 11. e4 {[%clk
0:02:51.6]} 11... Qc7 {[%clk 0:01:43.2]} 12. h3 {[%clk 0:02:45.9]} 12... Nf8
{[%clk 0:01:43]} 13. Be3 {[%clk 0:02:43.6]} 13... Ne6 {[%clk 0:01:32]} 14. c5
{[%clk 0:02:38.3]} 14... Nf4 {[%clk 0:01:31.3]} 15. Bf1 {[%clk 0:02:37.7]} 15...
h6 {[%clk 0:01:20.7]} 16. Kh2 {[%clk 0:02:36.9]} 16... g5 {[%clk 0:01:19.6]} 17.
Ng1 {[%clk 0:02:31.1]} 17... Be6 {[%clk 0:01:17]} 18. g3 {[%clk 0:02:29]} 18...
Ng6 {[%clk 0:01:16.8]} 19. Rd2 {[%clk 0:02:22.2]} 19... Rad8 {[%clk 0:01:16.7]}
20. Rad1 {[%clk 0:02:22.7]} 20... Rxd2 {[%clk 0:01:16.9]} 21. Rxd2 {[%clk
0:02:17.5]} 21... Rd8 {[%clk 0:01:16.5]} 22. Rxd8+ {[%clk 0:02:16.1]} 22... Qxd8
{[%clk 0:01:17.4]} 23. Qa4 {[%clk 0:02:16.5]} 23... a6 {[%clk 0:01:14.3]} 24.
Bc4 {[%clk 0:02:16.4]} 24... Nf8 {[%clk 0:01:10.7]} 25. Nf3 {[%clk 0:02:06.2]}
25... N6d7 {[%clk 0:00:58.2]} 26. Nd2 {[%clk 0:01:57.1]} 26... Qe7 {[%clk
0:00:51.9]} 27. Qb4 {[%clk 0:01:49.9]} 27... b5 {[%clk 0:00:44.7]} 28. Bb3
{[%clk 0:01:45.8]} 28... f5 {[%clk 0:00:36.1]} 29. exf5 {[%clk 0:01:43.4]} 29...
Bxb3 {[%clk 0:00:35.2]} 30. Qxb3+ {[%clk 0:01:40.9]} 30... Kh8 {[%clk
0:00:35.5]} 31. Nce4 {[%clk 0:01:37.6]} 31... Nh7 {[%clk 0:00:27.3]} 32. Qa3
{[%clk 0:01:27.7]} 32... Nb8 {[%clk 0:00:24.2]} 33. Qd3 {[%clk 0:01:26.2]} 33...
Nf6 {[%clk 0:00:22.1]} 34. Nxf6 {[%clk 0:01:23.2]} 34... Bxf6 {[%clk 0:00:22]}
35. Ne4 {[%clk 0:01:22.5]} 35... Nd7 {[%clk 0:00:21.5]} 36. Kg2 {[%clk
0:01:17.2]} 36... Kg7 {[%clk 0:00:21.1]} 37. Kf3 {[%clk 0:01:15.2]} 37... Qf7
{[%clk 0:00:20.5]} 38. Kg2 {[%clk 0:01:13.7]} 38... Kf8 {[%clk 0:00:18.8]} 39.
Qd6+ {[%clk 0:01:12.6]} 39... Kg7 {[%clk 0:00:18.3]} 40. Qxc6 {[%clk 0:01:11.6]}
40... Nf8 {[%clk 0:00:18.4]} 41. Qxf6+ {[%clk 0:01:07.3]} 41... Qxf6 {[%clk
0:00:18.2]} 42. Nxf6 {[%clk 0:01:08.2]} 42... Kxf6 {[%clk 0:00:19.1]} 43. c6
{[%clk 0:01:09]} 43... Ke7 {[%clk 0:00:19]} 44. Bc5+ {[%clk 0:01:09.2]} 1-0

[Event "*** Titled Tuesday Blitz"]
[Site "Chess.com"]
[Date "2020.05.12"]
[Round "10"]
[White "Nikolaj_6"]
[Black "karinachess1"]
[Result "1-0"]
[WhiteElo "2575"]
[BlackElo "2461"]
[TimeControl "180+1"]
[EndTime "11:53:01 PDT"]
[Termination "Nikolaj_6 won on time"]

1. e4 {[%clk 0:03:00.9]} 1... e5 {[%clk 0:02:58.4]} 2. Nf3 {[%clk 0:03:00.8]}
2... Nc6 {[%clk 0:02:58.1]} 3. Bb5 {[%clk 0:03:00.7]} 3... a6 {[%clk 0:02:54.4]}
4. Ba4 {[%clk 0:03:00.8]} 4... Nf6 {[%clk 0:02:53.3]} 5. Qe2 {[%clk 0:03:00.6]}
5... b5 {[%clk 0:02:43.2]} 6. Bb3 {[%clk 0:03:00.2]} 6... Bc5 {[%clk 0:02:37.7]}
7. a4 {[%clk 0:02:59.1]} 7... b4 {[%clk 0:02:33.8]} 8. Bxf7+ {[%clk 0:02:56]}
8... Kxf7 {[%clk 0:02:13.3]} 9. Qc4+ {[%clk 0:02:54.4]} 9... Ke8 {[%clk
0:01:37]} 10. Qxc5 {[%clk 0:02:46.7]} 10... Nxe4 {[%clk 0:01:36.8]} 11. Qe3
{[%clk 0:02:44.6]} 11... Nf6 {[%clk 0:01:19.1]} 12. Nxe5 {[%clk 0:02:42.7]}
12... Nxe5 {[%clk 0:01:13.7]} 13. Qxe5+ {[%clk 0:02:42.2]} 13... Qe7 {[%clk
0:01:14.6]} 14. Qxe7+ {[%clk 0:02:40.3]} 14... Kxe7 {[%clk 0:01:15.5]} 15. d3
{[%clk 0:02:36.9]} 15... Bb7 {[%clk 0:01:14.3]} 16. f3 {[%clk 0:02:35.5]} 16...
a5 {[%clk 0:01:13.4]} 17. Bg5 {[%clk 0:02:32.7]} 17... Rhe8 {[%clk 0:01:12.7]}
18. Nd2 {[%clk 0:02:29.3]} 18... Kf7+ {[%clk 0:01:11.1]} 19. Kf2 {[%clk
0:02:26]} 19... Nd5 {[%clk 0:01:11.1]} 20. Nc4 {[%clk 0:02:23.1]} 20... h6
{[%clk 0:00:49]} 21. Bd2 {[%clk 0:02:20.3]} 21... Ba6 {[%clk 0:00:45.3]} 22. b3
{[%clk 0:02:16.4]} 22... Bxc4 {[%clk 0:00:41.8]} 23. dxc4 {[%clk 0:02:09.6]}
23... Nf6 {[%clk 0:00:39.9]} 24. Rhe1 {[%clk 0:02:07.8]} 24... d5 {[%clk
0:00:34.7]} 25. cxd5 {[%clk 0:01:58.7]} 25... Nxd5 {[%clk 0:00:35.6]} 26. Rxe8
{[%clk 0:01:58]} 26... Rxe8 {[%clk 0:00:36.5]} 27. Re1 {[%clk 0:01:57.5]} 27...
Rxe1 {[%clk 0:00:30]} 28. Kxe1 {[%clk 0:01:55.7]} 28... Ke6 {[%clk 0:00:29.6]}
29. Ke2 {[%clk 0:01:55.9]} 29... Nb6 {[%clk 0:00:19.4]} 30. Kd3 {[%clk
0:01:54.5]} 30... Kd5 {[%clk 0:00:19.5]} 31. c4+ {[%clk 0:01:39.1]} 31... bxc3
{[%clk 0:00:16.2]} 32. Bxc3 {[%clk 0:01:39]} 32... Nd7 {[%clk 0:00:17.1]} 33.
Bxg7 {[%clk 0:01:32.8]} 33... h5 {[%clk 0:00:15.8]} 34. Bc3 {[%clk 0:01:31.9]}
34... Nc5+ {[%clk 0:00:14]} 35. Kc2 {[%clk 0:01:32]} 35... Nb7 {[%clk
0:00:14.1]} 36. h4 {[%clk 0:01:30]} 36... Ke6 {[%clk 0:00:13.3]} 37. g4 {[%clk
0:01:30]} 37... hxg4 {[%clk 0:00:12.8]} 38. fxg4 {[%clk 0:01:30.6]} 38... Kf7
{[%clk 0:00:11]} 39. h5 {[%clk 0:01:30.6]} 39... Kg8 {[%clk 0:00:09.1]} 40. g5
{[%clk 0:01:30.7]} 40... Kh7 {[%clk 0:00:07.5]} 41. Kd3 {[%clk 0:01:26.5]} 41...
Nc5+ {[%clk 0:00:04.6]} 42. Kc4 {[%clk 0:01:26.7]} 42... Ne4 {[%clk 0:00:03.2]}
43. Bxa5 {[%clk 0:01:23.5]} 43... Nxg5 {[%clk 0:00:03]} 44. Bxc7 {[%clk
0:01:22.5]} 44... Ne6 {[%clk 0:00:02.5]} 45. Be5 {[%clk 0:01:20.1]} 1-0

[Event "*** Titled Tuesday Blitz"]
[Site "Chess.com"]
[Date "2020.05.12"]
[Round "10"]
[White "Parhamov"]
[Black "Radzio1987"]
[Result "1/2-1/2"]
[WhiteElo "3013"]
[BlackElo "2896"]
[TimeControl "180+1"]
[EndTime "11:53:02 PDT"]
[Termination "Game drawn by repetition"]

1. e4 {[%clk 0:03:00.9]} 1... c6 {[%clk 0:03:00.1]} 2. d4 {[%clk 0:02:59.8]}
2... d5 {[%clk 0:03:01]} 3. e5 {[%clk 0:02:59.6]} 3... Bf5 {[%clk 0:03:00.6]} 4.
Nc3 {[%clk 0:02:59.3]} 4... Qb6 {[%clk 0:02:57.8]} 5. g4 {[%clk 0:02:58.4]} 5...
Bd7 {[%clk 0:02:57.8]} 6. f4 {[%clk 0:02:58.6]} 6... h5 {[%clk 0:02:56.6]} 7. g5
{[%clk 0:02:39]} 7... Bf5 {[%clk 0:02:54.2]} 8. Nf3 {[%clk 0:02:38.2]} 8... e6
{[%clk 0:02:53.3]} 9. Nh4 {[%clk 0:02:37.8]} 9... Ne7 {[%clk 0:02:46.6]} 10. a3
{[%clk 0:02:37.5]} 10... Bg4 {[%clk 0:02:42.2]} 11. Be2 {[%clk 0:02:34.6]} 11...
Bxe2 {[%clk 0:02:41.2]} 12. Nxe2 {[%clk 0:02:34.8]} 12... g6 {[%clk 0:02:40.5]}
13. b3 {[%clk 0:02:34.3]} 13... c5 {[%clk 0:02:39.5]} 14. Be3 {[%clk 0:02:33.8]}
14... Nec6 {[%clk 0:02:38.6]} 15. O-O {[%clk 0:02:33.7]} 15... cxd4 {[%clk
0:02:34.3]} 16. Nxd4 {[%clk 0:02:34.6]} 16... Nxd4 {[%clk 0:02:29.2]} 17. Qxd4
{[%clk 0:02:34.2]} 17... Qxd4 {[%clk 0:02:28.4]} 18. Bxd4 {[%clk 0:02:35.1]}
18... Nc6 {[%clk 0:02:28.8]} 19. Bf2 {[%clk 0:02:33.1]} 19... Kd7 {[%clk
0:02:28]} 20. Nf3 {[%clk 0:02:29.6]} 20... Be7 {[%clk 0:02:27.4]} 21. Rfd1
{[%clk 0:02:29.9]} 21... Kc7 {[%clk 0:02:23.6]} 22. b4 {[%clk 0:02:27.7]} 22...
a6 {[%clk 0:02:22.1]} 23. c3 {[%clk 0:02:26.4]} 23... Rhc8 {[%clk 0:02:11.2]}
24. a4 {[%clk 0:02:26.6]} 24... b6 {[%clk 0:02:11.2]} 25. Kf1 {[%clk 0:02:20.7]}
25... Kb7 {[%clk 0:02:11.3]} 26. Ke2 {[%clk 0:02:21]} 26... Rc7 {[%clk
0:02:11.5]} 27. Kd3 {[%clk 0:02:21.1]} 27... Rac8 {[%clk 0:02:11.5]} 28. Be1
{[%clk 0:02:18]} 28... Nb8 {[%clk 0:01:59.5]} 29. Rdb1 {[%clk 0:02:15.4]} 29...
Rc4 {[%clk 0:01:59]} 30. Bd2 {[%clk 0:02:15.4]} 30... Nc6 {[%clk 0:01:57.3]} 31.
Rc1 {[%clk 0:02:08.6]} 31... a5 {[%clk 0:01:54.3]} 32. b5 {[%clk 0:02:06.9]}
32... Nb8 {[%clk 0:01:54.2]} 33. Be3 {[%clk 0:02:05.2]} 33... Nd7 {[%clk
0:01:51]} 34. Nd2 {[%clk 0:02:04]} 34... Nc5+ {[%clk 0:01:44.2]} 35. Bxc5 {[%clk
0:01:58.3]} 35... R4xc5 {[%clk 0:01:45.1]} 36. h4 {[%clk 0:01:54.9]} 36... R5c7
{[%clk 0:01:44.9]} 37. Rc2 {[%clk 0:01:53.7]} 37... Bc5 {[%clk 0:01:44.9]} 38.
Rf1 {[%clk 0:01:47.2]} 38... Bb4 {[%clk 0:01:40.3]} 39. Rfc1 {[%clk 0:01:46.9]}
39... Ba3 {[%clk 0:01:40.5]} 40. Rb1 {[%clk 0:01:46.4]} 40... Bb4 {[%clk
0:01:37.5]} 41. Rbc1 {[%clk 0:01:46.3]} 41... Ba3 {[%clk 0:01:37.7]} 42. Rb1
{[%clk 0:01:42.2]} 42... Bb4 {[%clk 0:01:34]} 43. Rb3 {[%clk 0:01:41.2]} 43...
Bc5 {[%clk 0:01:34]} 44. Rb1 {[%clk 0:01:36.5]} 44... Be7 {[%clk 0:01:33.7]} 45.
Rf1 {[%clk 0:00:46.7]} 45... Bc5 {[%clk 0:01:31]} 46. Nb3 {[%clk 0:00:43.7]}
46... Be7 {[%clk 0:01:30.9]} 47. Nd2 {[%clk 0:00:36.9]} 47... Bc5 {[%clk
0:01:30.5]} 48. Nb3 {[%clk 0:00:36]} 48... Bb4 {[%clk 0:01:30.1]} 49. Rfc1
{[%clk 0:00:35.4]} 49... Ba3 {[%clk 0:01:26.7]} 50. Ra1 {[%clk 0:00:34.6]} 50...
Be7 {[%clk 0:01:26.4]} 51. Nd2 {[%clk 0:00:34.8]} 51... Bc5 {[%clk 0:01:23.5]}
52. Rf1 {[%clk 0:00:34.8]} 52... Ba3 {[%clk 0:01:22.9]} 53. Ra1 {[%clk
0:00:33.6]} 53... Be7 {[%clk 0:01:18.9]} 54. Rf1 {[%clk 0:00:33.3]} 1/2-1/2

[Event "*** Titled Tuesday Blitz"]
[Site "Chess.com"]
[Date "2020.05.12"]
[Round "10"]
[White "Glidzhian_Gor"]
[Black "nitpicker"]
[Result "1-0"]
[WhiteElo "2443"]
[BlackElo "2267"]
[TimeControl "180+1"]
[EndTime "11:53:03 PDT"]
[Termination "Glidzhian_Gor won on time"]

1. e4 {[%clk 0:03:00.9]} 1... e6 {[%clk 0:02:58.5]} 2. d4 {[%clk 0:03:01]} 2...
d5 {[%clk 0:02:57.8]} 3. Nc3 {[%clk 0:03:01.6]} 3... dxe4 {[%clk 0:02:57.8]} 4.
Nxe4 {[%clk 0:03:02.5]} 4... Bd7 {[%clk 0:02:58.1]} 5. Ng5 {[%clk 0:03:01.6]}
5... h6 {[%clk 0:02:36.9]} 6. N5f3 {[%clk 0:03:00.8]} 6... Nf6 {[%clk
0:02:19.2]} 7. Ne5 {[%clk 0:03:00.1]} 7... Bc8 {[%clk 0:02:16.5]} 8. Ngf3 {[%clk
0:03:00]} 8... Be7 {[%clk 0:02:12.6]} 9. Nxf7 {[%clk 0:02:51.3]} 9... Kxf7
{[%clk 0:02:10.9]} 10. Ne5+ {[%clk 0:02:51.7]} 10... Kg8 {[%clk 0:02:02.8]} 11.
Bd3 {[%clk 0:02:51.7]} 11... Nc6 {[%clk 0:01:56.5]} 12. O-O {[%clk 0:02:34.9]}
12... Nxe5 {[%clk 0:01:46]} 13. dxe5 {[%clk 0:02:35]} 13... Nd5 {[%clk
0:01:38.5]} 14. a3 {[%clk 0:02:29]} 14... Bd7 {[%clk 0:01:36.5]} 15. c4 {[%clk
0:02:29.2]} 15... Nb6 {[%clk 0:01:34.8]} 16. Qg4 {[%clk 0:02:29.5]} 16... a5
{[%clk 0:01:17.4]} 17. Rd1 {[%clk 0:02:25.9]} 17... Qe8 {[%clk 0:01:13.6]} 18.
Be3 {[%clk 0:02:21.8]} 18... Bf8 {[%clk 0:01:02.4]} 19. Bg6 {[%clk 0:02:17.7]}
19... Qe7 {[%clk 0:01:00.9]} 20. h4 {[%clk 0:02:12.8]} 20... Be8 {[%clk
0:00:55]} 21. Bc2 {[%clk 0:02:05.6]} 21... Nd7 {[%clk 0:00:42.8]} 22. Bf4 {[%clk
0:01:50.8]} 22... Bf7 {[%clk 0:00:37.2]} 23. Rd4 {[%clk 0:01:43.1]} 23... Nb6
{[%clk 0:00:34.4]} 24. Rad1 {[%clk 0:01:42.9]} 24... c5 {[%clk 0:00:28.7]} 25.
Rd6 {[%clk 0:01:25.2]} 25... Nxc4 {[%clk 0:00:26.2]} 26. Rd7 {[%clk 0:01:25.7]}
26... Qe8 {[%clk 0:00:20.6]} 27. Rxb7 {[%clk 0:01:14.3]} 27... Bh5 {[%clk
0:00:19.8]} 28. Qh3 {[%clk 0:01:09.4]} 28... Bxd1 {[%clk 0:00:19.1]} 29. Bxd1
{[%clk 0:01:09.9]} 29... Rd8 {[%clk 0:00:17.8]} 30. Bb3 {[%clk 0:01:10]} 30...
Rd4 {[%clk 0:00:15.3]} 31. Be3 {[%clk 0:00:57.4]} 31... Re4 {[%clk 0:00:14.9]}
32. Qf3 {[%clk 0:00:47.2]} 32... Rxh4 {[%clk 0:00:07.3]} 33. Bf4 {[%clk
0:00:47.5]} 1-0